bitfinex-derivatives/quotes_SOLF0:USTF0_20241229
["timestamp","ask_amount","ask_price","bid_price","bid_amount"]
[1735478027691,0.82413515,195.69,195.57,2.5605]
[1735478027884,0.82413546,195.68,195.57,2.5605]
[1735478028090,0.82413546,195.67,195.57,2.5605]
[1735478028396,6.78284711,195.72,195.57,2.5605]
[1735478028691,0.82412894,195.71,195.57,2.5605]
[1735478030481,0.82412894,195.71,195.59,2.5603]
[1735478030687,0.82412894,195.71,195.6,2.94]
[1735478031083,0.82412894,195.7,195.6,2.94]
[1735478031294,0.82412894,195.69,195.6,2.94]
[1735478031493,5.36504711,195.73,195.6,2.94]
[1735478031693,0.82419215,195.72,195.6,2.94]
[1735478033095,0.82418536,195.71,195.6,2.94]
[1735478033285,0.82418536,195.7,195.6,2.94]
[1735478033491,0.82418536,195.69,195.6,2.94]
[1735478033792,5.44804711,195.74,195.61,2.5599]
[1735478034090,0.82421607,195.73,195.6,2.94]
[1735478034388,0.82421607,195.72,195.6,2.94]
[1735478034589,7.96765721,195.76,195.6,2.94]
[1735478034795,0.82437363,195.75,195.64,2.5595]
[1735478035096,0.82437363,195.75,195.65,2.94]
[1735478035299,3.84284711,195.77,195.66,4.1117]
[1735478035495,0.82445718,195.76,195.66,5.6541]
[1735478035893,0.82445718,195.75,195.66,5.6541]
[1735478036098,1.6004,195.78,195.66,5.6541]
[1735478036302,0.82439429,195.77,195.66,5.6541]
[1735478036500,0.82439429,195.77,195.67,2.5591]
[1735478036999,0.82439429,195.76,195.67,2.5591]
[1735478037194,0.82439429,195.75,195.67,2.5591]
[1735478037395,3.84284711,195.8,195.67,2.5591]
[1735478037602,0.82442037,195.78,195.67,2.5591]
[1735478037900,3.84284711,195.8,195.67,2.5591]
[1735478038093,0.82441797,195.78,195.67,2.5591]
[1735478038494,0.82441797,195.78,195.66,3.0948]
[1735478038695,0.82441797,195.78,195.66,5.6541]
[1735478040403,0.82441797,195.78,195.66,3.0948]
[1735478040601,0.82420147,195.77,195.67,2.94]
[1735478040802,0.82420147,195.76,195.67,2.94]
[1735478041101,3.84284711,195.8,195.67,2.94]
[1735478041404,0.82419938,195.78,195.66,3.0948]
[1735478041603,0.82419938,195.78,195.67,2.94]
[1735478042304,3.84284711,195.8,195.67,2.94]
[1735478042598,0.82417235,195.78,195.68,2.94]
[1735478043001,1.594,195.77,195.68,2.94]
[1735478043201,0.82417235,195.76,195.68,2.94]
[1735478043399,2.30757235,195.76,195.68,2.94]
[1735478043694,0.82417235,195.75,195.68,2.94]
[1735478044505,2.31187235,195.75,195.68,2.94]
[1735478044703,0.82417235,195.74,195.68,2.94]
[1735478044904,0.82419565,195.73,195.68,2.94]
[1735478045106,1.4877,195.75,195.68,2.94]
[1735478045308,0.82419307,195.74,195.68,2.94]
[1735478047409,1.4877,195.75,195.68,2.94]
[1735478047599,0.8241844,195.74,195.68,2.94]
[1735478047802,11.46045633,195.77,195.68,2.94]
[1735478048004,0.82429472,195.76,195.68,2.94]
[1735478048206,3.4530218,195.79,195.68,2.94]
[1735478048406,0.82431451,195.78,195.68,2.94]
[1735478050410,0.82431451,195.78,195.68,5.4991]
[1735478051211,0.82431451,195.78,195.68,2.94]
[1735478052608,0.82439921,195.77,195.68,2.94]
[1735478052808,7.29586891,195.79,195.68,2.94]
[1735478053011,0.82439921,195.78,195.68,2.94]
[1735478056111,0.82439921,195.78,195.68,5.4991]
[1735478056512,0.82439921,195.78,195.68,2.94]
[1735478057518,0.82439921,195.78,195.69,2.94]
[1735478057712,0.82451119,195.77,195.69,2.94]
[1735478057913,7.29586891,195.79,195.69,2.94]
[1735478058110,0.82451297,195.78,195.69,2.94]
[1735478060222,16.44927813,195.79,195.69,2.94]
[1735478060424,0.824384,195.77,195.69,2.94]
[1735478060618,0.824384,195.76,195.69,2.94]
[1735478062718,0.824384,195.77,195.69,2.94]
[1735478062921,0.82433682,195.76,195.69,2.94]
[1735478063122,0.82433682,195.75,195.69,2.94]
[1735478063322,0.82433682,195.74,195.69,2.94]
[1735478063618,4.98647274,195.79,195.69,2.94]
[1735478063823,0.82435693,195.78,195.69,2.94]
[1735478068818,0.82435693,195.78,195.6,3.0783]
[1735478069016,8.79201414,195.78,195.61,2.94]
[1735478069220,0.82435693,195.77,195.61,5.5]
[1735478069427,0.82435693,195.77,195.6,3.0783]
[1735478069825,8.79201414,195.77,195.61,2.94]
[1735478070027,0.82435693,195.76,195.61,2.94]
[1735478070419,7.96765721,195.77,195.61,2.94]
[1735478070623,0.82398617,195.76,195.61,2.94]
[1735478070826,8.79164338,195.76,195.61,2.94]
[1735478071126,0.82398617,195.75,195.61,2.94]
[1735478071327,5.30928617,195.74,195.61,2.94]
[1735478071630,2.43338617,195.73,195.61,2.94]
[1735478071825,0.82398617,195.72,195.61,2.94]
[1735478072426,0.82400493,195.71,195.61,2.94]
[1735478072628,0.82400493,195.7,195.61,2.94]
[1735478072824,0.82400493,195.69,195.61,2.94]
[1735478073030,5.37324711,195.72,195.61,2.94]
[1735478073223,0.82396297,195.71,195.61,2.94]
[1735478073425,0.82396297,195.71,195.62,2.94]
[1735478075629,5.37324711,195.72,195.62,2.94]
[1735478075828,0.82380802,195.71,195.62,2.94]
[1735478080828,5.37324711,195.72,195.62,2.94]
[1735478081027,0.82388161,195.71,195.62,2.94]
[1735478081334,3.84284711,195.72,195.64,2.5596]
[1735478081534,1.6094,195.73,195.64,2.5596]
[1735478081726,19.42811354,195.78,195.64,2.5596]
[1735478081927,20.97391354,195.78,195.64,2.5596]
[1735478082226,0.82401398,195.77,195.64,2.5596]
[1735478082426,3.84284711,195.77,195.64,2.5596]
[1735478082629,0.82401398,195.76,195.63,3.0614]
[1735478082930,0.82401398,195.75,195.63,3.0614]
[1735478083131,0.82401398,195.74,195.63,3.0614]
[1735478083431,0.82401398,195.73,195.63,3.0614]
[1735478083632,3.84284711,195.77,195.63,3.0614]
[1735478083831,0.82402162,195.76,195.64,2.5596]
[1735478084035,0.82402162,195.75,195.63,3.0614]
[1735478084233,0.82402162,195.74,195.63,5.621]
[1735478084428,0.82402162,195.73,195.63,5.621]
[1735478084630,3.84284711,195.77,195.63,5.621]
[1735478084833,0.82390063,195.76,195.63,5.621]
[1735478085033,0.82390063,195.75,195.63,5.621]
[1735478085229,3.84284711,195.77,195.63,5.621]
[1735478085230,0.82390063,195.74,195.63,5.621]
[1735478085434,0.82390063,195.73,195.63,5.621]
[1735478085637,3.84284711,195.77,195.63,5.621]
[1735478085835,0.82386239,195.76,195.63,5.621]
[1735478086030,0.82386239,195.75,195.63,5.621]
[1735478086237,0.82386239,195.74,195.63,5.621]
[1735478086430,0.82386239,195.73,195.63,5.621]
[1735478086630,3.84284711,195.77,195.63,5.621]
[1735478086831,20.97391354,195.78,195.63,5.621]
[1735478087028,0.82386433,195.77,195.63,5.621]
[1735478087239,4.66671144,195.77,195.63,5.621]
[1735478087533,0.82386433,195.76,195.63,5.621]
[1735478089341,0.82387476,195.75,195.63,5.621]
[1735478089541,0.82387476,195.74,195.63,5.621]
[1735478089737,0.82384385,195.73,195.63,5.621]
[1735478089936,3.84284711,195.77,195.63,5.621]
[1735478090136,0.82385617,195.76,195.63,5.621]
[1735478090337,0.82385617,195.75,195.63,5.621]
[1735478090538,0.82385617,195.74,195.63,5.621]
[1735478090735,0.82385617,195.73,195.63,5.621]
[1735478090940,0.82385617,195.72,195.63,5.621]
[1735478091238,3.84284711,195.77,195.64,2.94]
[1735478091440,0.82384703,195.76,195.64,2.94]
[1735478091634,0.82384703,195.75,195.64,2.94]
[1735478091836,0.82384703,195.74,195.64,2.94]
[1735478092029,0.82384703,195.73,195.64,2.94]
[1735478092234,0.82384703,195.72,195.64,2.94]
[1735478092441,3.84284711,195.77,195.64,2.94]
[1735478092638,0.82387864,195.76,195.64,2.94]
[1735478092838,0.82387864,195.75,195.64,2.94]
[1735478093039,0.82387864,195.74,195.64,2.94]
[1735478093246,0.82387864,195.73,195.64,2.94]
[1735478093443,0.82387864,195.72,195.64,2.94]
[1735478093637,3.84284711,195.77,195.64,2.94]
[1735478093838,0.82387268,195.76,195.64,2.94]
[1735478094142,0.82387268,195.75,195.64,2.94]
[1735478094339,0.82387268,195.74,195.64,2.94]
[1735478094539,0.82387268,195.73,195.64,2.94]
[1735478094740,3.84284711,195.77,195.64,2.94]
[1735478094939,0.82413932,195.76,195.64,2.94]
[1735478095140,7.61760922,195.77,195.64,2.94]
[1735478095336,0.82420817,195.76,195.68,2.559]
[1735478095544,3.45067274,195.79,195.69,2.94]
[1735478095738,0.82423552,195.78,195.69,2.94]
[1735478096739,0.82414207,195.77,195.69,2.94]
[1735478097045,0.82414207,195.76,195.69,2.94]
[1735478097243,0.82414207,195.75,195.69,2.94]
[1735478097441,3.45067274,195.79,195.69,2.94]
[1735478097641,0.82412201,195.78,195.69,2.94]
[1735478100139,0.82425234,195.77,195.69,2.94]
[1735478100343,3.45067274,195.79,195.69,2.94]
[1735478100642,0.82425239,195.78,195.69,5.4989]
[1735478100944,0.82425239,195.78,195.7,3.0569]
[1735478101842,0.82425239,195.78,195.69,2.94]
[1735478104441,1.64861108,195.77,195.69,2.94]
[1735478104743,0.82430554,195.77,195.69,2.94]
[1735478106343,0.82430554,195.77,195.69,5.4988]
[1735478106744,0.82430554,195.77,195.7,3.0613]
[1735478109148,0.82430554,195.77,195.71,2.94]
[1735478113758,3.45067274,195.79,195.71,2.94]
[1735478114053,0.82590069,195.78,195.71,2.94]
[1735478115051,3.84284711,195.8,195.72,2.5585]
[1735478115252,7.96765721,195.81,195.72,2.5585]
[1735478115459,0.82603135,195.8,195.72,2.5585]
[1735478115652,19.42811354,195.87,195.72,2.5585]
[1735478115858,0.82603319,195.86,195.72,2.5585]
[1735478116158,0.82603319,195.86,195.71,2.94]
[1735478116457,0.82603319,195.86,195.73,2.5584]
[1735478117259,0.8260215,195.85,195.73,2.5584]
[1735478117560,0.8260215,195.84,195.73,2.5584]
[1735478117761,0.8260215,195.83,195.73,2.5584]
[1735478118067,0.8260215,195.82,195.73,2.5584]
[1735478118359,0.8260215,195.81,195.73,2.5584]
[1735478118560,0.8260215,195.8,195.73,2.5584]
[1735478118762,3.84284711,195.87,195.73,2.5584]
[1735478119062,0.82609958,195.86,195.73,2.5584]
[1735478120756,0.82609958,195.85,195.73,2.5584]
[1735478120961,0.82609958,195.84,195.73,2.5584]
[1735478121166,0.82609958,195.83,195.73,2.5584]
[1735478121462,0.82639614,195.82,195.73,2.5584]
[1735478121763,0.82639614,195.81,195.73,2.5584]
[1735478121965,0.82639614,195.8,195.73,2.5584]
[1735478122164,14.45995633,195.88,195.73,2.5584]
[1735478122365,0.82650897,195.87,195.73,2.5584]
[1735478123467,0.82650897,195.87,195.75,2.5582]
[1735478123669,0.82650897,195.87,195.76,2.94]
[1735478123870,0.82650897,195.87,195.77,2.94]
[1735478124170,0.82650897,195.87,195.78,2.94]
[1735478124877,0.82642534,195.86,195.78,2.94]
[1735478125168,0.82642534,195.85,195.78,2.94]
[1735478125371,1.4769,195.88,195.78,2.94]
[1735478125571,0.82622983,195.87,195.78,5.4978]
[1735478125875,0.82622983,195.86,195.78,5.4978]
[1735478126075,5.44294711,195.92,195.78,5.4978]
[1735478126276,0.82626379,195.91,195.78,5.4978]
[1735478127577,0.82637236,195.9,195.79,3.0862]
[1735478127778,0.82637236,195.89,195.79,3.0862]
[1735478128076,0.82637236,195.88,195.79,3.0862]
[1735478128278,0.82637236,195.87,195.8,2.94]
[1735478128478,5.44294711,195.92,195.8,2.94]
[1735478128673,0.8265303,195.91,195.8,2.94]
[1735478129979,1.6001,195.92,195.8,2.94]
[1735478130180,0.8266386,195.91,195.8,2.94]
[1735478133184,0.8266386,195.91,195.8,5.4975]
[1735478134286,0.8266386,195.91,195.82,2.5572]
[1735478134482,0.8266386,195.91,195.8,2.94]
[1735478134682,0.8266386,195.9,195.8,2.94]
[1735478134884,11.46045633,195.95,195.83,2.557]
[1735478135079,0.82729029,195.94,195.83,2.557]
[1735478136882,0.82729029,195.94,195.84,2.557]
[1735478137194,0.82729029,195.94,195.85,2.94]
[1735478137385,0.82729029,195.94,195.81,2.5573]
[1735478137580,0.82729029,195.94,195.82,2.94]
[1735478137785,0.82730516,195.93,195.83,2.94]
[1735478138089,0.82730516,195.92,195.83,2.94]
[1735478138287,0.82730516,195.91,195.82,2.94]
[1735478138487,3.93050516,195.91,195.82,2.94]
[1735478138689,0.82730516,195.9,195.82,2.94]
[1735478139289,0.82730516,195.9,195.79,2.94]
[1735478140589,20.2554187,195.9,195.79,2.94]
[1735478140789,0.82730516,195.89,195.79,2.94]
[1735478142889,19.42811354,195.9,195.79,2.94]
[1735478143088,11.46045633,195.9,195.79,2.94]
[1735478143286,0.82717904,195.89,195.79,2.94]
[1735478143489,19.42811354,195.9,195.79,2.94]
[1735478143689,0.82729501,195.89,195.79,2.94]
[1735478144988,19.42811354,195.9,195.79,2.94]
[1735478145183,0.82726058,195.89,195.79,2.94]
[1735478146284,0.82723018,195.88,195.79,2.94]
[1735478146493,0.82723018,195.87,195.79,2.94]
[1735478146687,0.82723018,195.86,195.79,2.94]
[1735478146989,0.82723018,195.85,195.79,2.94]
[1735478147290,0.82723018,195.84,195.79,2.94]
[1735478147493,19.42811354,195.9,195.79,2.94]
[1735478147691,0.82709285,195.89,195.79,2.94]
[1735478149589,8.44470207,195.89,195.79,2.94]
[1735478149794,0.82709285,195.88,195.79,2.94]
[1735478149988,3.1032,195.91,195.79,2.94]
[1735478150189,0.82725507,195.9,195.79,2.94]
[1735478151395,0.82726281,195.89,195.79,2.94]
[1735478151595,0.82726281,195.9,195.79,2.94]
[1735478151791,0.82726013,195.89,195.79,2.94]
[1735478151995,3.1032,195.91,195.79,2.94]
[1735478152196,0.82723429,195.9,195.79,2.94]
[1735478154092,3.1032,195.91,195.79,2.94]
[1735478154093,0.82715167,195.89,195.79,2.94]
[1735478154300,3.1032,195.91,195.79,2.94]
[1735478154488,0.82715041,195.9,195.79,2.94]
[1735478157895,0.82715041,195.9,195.75,3.036]
[1735478158096,0.82715041,195.9,195.76,2.94]
[1735478158902,0.82715041,195.9,195.75,1.5246]
[1735478159198,0.82715041,195.9,195.76,2.94]
[1735478159701,12.28760674,195.9,195.76,2.94]
[1735478159900,0.82715041,195.89,195.76,2.94]
[1735478160497,19.42811354,195.9,195.76,2.94]
[1735478160498,0.82706427,195.88,195.76,2.94]
[1735478160700,0.82706427,195.87,195.76,2.94]
[1735478160899,0.82706427,195.86,195.76,2.94]
[1735478161097,0.82707031,195.85,195.77,2.94]
[1735478161299,7.61760922,195.89,195.77,2.94]
[1735478161499,0.82720249,195.88,195.77,2.94]
[1735478161803,0.82720249,195.87,195.77,2.94]
[1735478161999,0.82720249,195.86,195.77,2.94]
[1735478162197,1.5483,195.91,195.77,2.94]
[1735478162198,0.82720249,195.85,195.77,2.94]
[1735478162398,1.5483,195.91,195.77,2.94]
[1735478162601,0.82725144,195.9,195.77,2.94]
[1735478163403,0.82725144,195.9,195.78,1.6098]
[1735478163599,0.82735589,195.89,195.78,1.6098]
[1735478163802,0.82735589,195.88,195.78,1.6098]
[1735478163999,1.5483,195.91,195.78,1.6098]
[1735478164301,0.82712441,195.9,195.78,1.6098]
[1735478165104,0.82712441,195.9,195.78,4.1675]
[1735478165596,0.82712441,195.9,195.78,3.1663]
[1735478166001,1.5483,195.91,195.78,3.1663]
[1735478166202,0.8269249,195.9,195.78,3.1663]
[1735478166405,0.8269249,195.9,195.81,2.5574]
[1735478166598,1.5483,195.91,195.82,2.94]
[1735478166793,3.84284711,195.94,195.82,2.94]
[1735478166997,0.82690628,195.93,195.83,2.557]
[1735478167199,11.46045633,195.95,195.83,2.557]
[1735478167497,0.82691099,195.94,195.83,2.557]
[1735478167800,0.82691099,195.94,195.84,2.557]
[1735478167998,0.82691099,195.94,195.85,3.0387]
[1735478168702,11.46045633,195.95,195.85,5.5955]
[1735478169002,0.82678017,195.94,195.85,3.0387]
[1735478169706,0.82678017,195.94,195.86,2.5567]
[1735478169907,0.82678017,195.94,195.87,2.94]
[1735478171104,19.42811354,195.96,195.87,2.94]
[1735478171309,0.8266639,195.95,195.87,2.94]
[1735478171504,19.42811354,195.96,195.87,2.94]
[1735478173813,19.42811354,195.96,195.88,2.92]
[1735478174015,0.82643845,195.95,195.88,2.92]
[1735478174202,0.82640894,195.94,195.88,2.92]
[1735478174408,19.42811354,195.96,195.88,2.92]
[1735478174603,0.82639112,195.95,195.88,2.92]
[1735478176415,0.82639112,195.95,195.85,3.0387]
[1735478176416,0.82615305,195.94,195.85,3.0387]
[1735478176712,0.82615305,195.93,195.85,1.5372]
[1735478176910,0.82615305,195.92,195.86,2.92]
[1735478177105,0.82615305,195.91,195.87,2.92]
[1735478177313,3.84284711,195.95,195.85,2.92]
[1735478177511,0.82598507,195.94,195.85,2.92]
[1735478177711,0.82598507,195.93,195.85,2.92]
[1735478177918,0.82598507,195.92,195.85,2.92]
[1735478178218,0.82598507,195.91,195.85,2.92]
[1735478178413,0.82598507,195.9,195.85,2.92]
[1735478178613,1.5992,195.94,195.85,2.92]
[1735478178814,0.8259431,195.93,195.85,2.92]
[1735478180412,0.8259431,195.93,195.84,2.92]
[1735478180619,0.8259431,195.93,195.78,2.9711]
[1735478180918,0.8259431,195.93,195.79,2.92]
[1735478181511,15.97965633,195.94,195.79,2.92]
[1735478181712,0.82560055,195.93,195.79,2.92]
[1735478182320,0.82560055,195.93,195.78,1.5]
[1735478182519,0.82560055,195.93,195.8,2.92]
[1735478185626,0.82560055,195.93,195.79,2.92]
[1735478186127,0.82560055,195.93,195.75,2.92]
[1735478186422,12.28605688,195.93,195.68,1.536]
[1735478186629,0.82560055,195.92,195.72,2.92]
[1735478187127,1.02087693,195.91,195.72,2.92]
[1735478187335,0.82560055,195.9,195.68,1.536]
[1735478187523,10.53760922,195.89,195.69,2.92]
[1735478187729,0.82560055,195.88,195.69,2.92]
[1735478187929,2.39150055,195.88,195.69,2.92]
[1735478188139,0.82560055,195.87,195.69,2.92]
[1735478188431,4.66844766,195.87,195.64,1.5549]
[1735478188633,2.32330055,195.86,195.65,2.92]
[1735478188833,0.82560055,195.85,195.65,2.92]
[1735478189034,2.92,195.84,195.65,2.92]
[1735478189238,0.82560055,195.83,195.65,2.92]
[1735478189934,0.82560055,195.82,195.71,2.5587]
[1735478190135,0.82560055,195.81,195.72,2.92]
[1735478190333,0.82560055,195.8,195.72,2.92]
[1735478190532,5.34054711,195.86,195.72,2.92]
[1735478190735,0.82511035,195.85,195.72,2.92]
[1735478191638,0.82529267,195.84,195.72,2.92]
[1735478191934,0.82529267,195.83,195.72,2.92]
[1735478192135,0.82529267,195.82,195.72,2.92]
[1735478192335,0.82529267,195.81,195.72,2.92]
[1735478192535,0.82529267,195.8,195.72,2.92]
[1735478192735,5.34054711,195.86,195.72,2.92]
[1735478192931,0.82529762,195.85,195.72,2.92]
[1735478193437,0.82529762,195.85,195.73,2.92]
[1735478194338,0.82531202,195.84,195.73,2.92]
[1735478194541,5.34054711,195.86,195.73,2.92]
[1735478194837,0.82541428,195.85,195.74,2.5583]
[1735478196041,0.82541428,195.85,195.73,2.92]
[1735478196241,0.82541428,195.85,195.73,5.4784]
[1735478196635,1.4977,195.86,195.73,5.4784]
[1735478196836,0.82605973,195.85,195.73,5.4784]
[1735478197036,0.82605973,195.85,195.74,1.5533]
[1735478197543,0.82605973,195.85,195.74,4.1116]
[1735478198044,0.82605973,195.84,195.74,4.1116]
[1735478198343,1.5659,195.88,195.74,1.5533]
[1735478198531,0.82604344,195.87,195.74,1.5533]
[1735478201842,0.82599398,195.86,195.75,2.94]
[1735478202033,0.82599398,195.85,195.74,2.94]
[1735478202238,0.82599398,195.84,195.74,2.94]
[1735478202438,0.82599398,195.83,195.74,2.94]
[1735478202635,0.82599398,195.82,195.74,2.94]
[1735478202839,0.82599398,195.81,195.74,2.94]
[1735478203039,2.94,195.86,195.74,2.94]
[1735478203240,0.82607002,195.85,195.74,2.94]
[1735478203843,2.94,195.86,195.74,2.94]
[1735478204043,0.82607547,195.85,195.74,2.94]
[1735478204441,0.82615231,195.84,195.74,2.94]
[1735478204641,0.82615231,195.83,195.74,2.94]
[1735478204943,0.82615231,195.82,195.74,2.94]
[1735478205134,0.82615231,195.81,195.74,2.94]
[1735478205334,2.94,195.86,195.7,2.5588]
[1735478205535,0.82624384,195.85,195.71,2.94]
[1735478207146,0.82641229,195.84,195.71,2.94]
[1735478207345,0.82641229,195.83,195.71,2.94]
[1735478207549,0.82641229,195.82,195.71,2.94]
[1735478207845,0.82641229,195.81,195.71,2.94]
[1735478208046,0.82641229,195.8,195.71,2.94]
[1735478208242,0.82641229,195.79,195.71,2.94]
[1735478208442,0.82641229,195.78,195.71,2.94]
[1735478208748,2.94,195.86,195.71,2.94]
[1735478208948,0.82643979,195.85,195.72,2.92]
[1735478211644,2.94,195.86,195.72,2.92]
[1735478211949,0.82643831,195.85,195.72,2.92]
[1735478212248,0.82643406,195.84,195.72,2.92]
[1735478212448,0.82643406,195.83,195.72,2.92]
[1735478212751,0.82643406,195.82,195.72,2.92]
[1735478212946,1.525,195.81,195.72,2.92]
[1735478213142,0.82643406,195.8,195.72,2.92]
[1735478213947,0.82643406,195.8,195.73,2.92]
[1735478214851,22.88037023,195.82,195.73,2.92]
[1735478215051,0.82625226,195.81,195.73,2.92]
[1735478215449,3.45225669,195.82,195.73,2.92]
[1735478217446,3.45225669,195.82,195.73,5.4783]
[1735478217649,3.45225669,195.82,195.73,2.92]
[1735478217845,3.45225669,195.82,195.74,1.5914]
[1735478218255,3.83893681,195.86,195.74,1.5914]
[1735478218554,15.28260946,195.87,195.74,1.5914]
[1735478218555,0.82612936,195.85,195.74,1.5914]
[1735478218751,0.82612936,195.84,195.74,1.5914]
[1735478218949,19.12154627,195.87,195.76,2.558]
[1735478219154,0.82616202,195.86,195.76,2.558]
[1735478219351,0.82616202,195.86,195.74,1.5914]
[1735478219556,0.82616202,195.86,195.75,2.5582]
[1735478220445,0.82616202,195.86,195.76,2.558]
[1735478220852,0.82616202,195.86,195.77,1.5018]
[1735478221052,0.82616202,195.86,195.78,2.92]
[1735478221556,19.12154627,195.87,195.78,2.92]
[1735478221757,15.28260946,195.87,195.78,2.92]
[1735478222055,7.96765721,195.87,195.78,2.92]
[1735478222255,1.5156,195.9,195.79,2.5576]
[1735478222453,0.82666261,195.89,195.79,2.5576]
[1735478223657,0.82666261,195.89,195.78,2.92]
[1735478223858,0.82666261,195.89,195.8,2.5575]
[1735478224255,1.5288,195.92,195.8,2.5575]
[1735478224456,0.82682766,195.91,195.8,2.5575]
[1735478225160,0.82682766,195.91,195.81,2.5573]
[1735478225354,0.82682766,195.9,195.81,2.5573]
[1735478225556,0.82682766,195.89,195.81,2.5573]
[1735478225759,5.35517822,195.95,195.82,2.5572]
[1735478226055,5.35517822,195.95,195.83,2.92]
[1735478226056,0.82691421,195.94,195.83,2.92]
[1735478226261,0.82691421,195.94,195.84,2.92]
[1735478226663,1.5178,195.95,195.84,2.92]
[1735478226863,0.82714878,195.94,195.84,2.92]
[1735478227666,0.82714878,195.94,195.85,2.92]
[1735478229367,0.82737168,195.93,195.85,2.92]
[1735478229570,0.82737168,195.92,195.85,2.92]
[1735478229769,0.82737168,195.91,195.85,2.92]
[1735478229965,0.82737168,195.9,195.85,2.92]
[1735478230162,0.82737168,195.89,195.85,2.92]
[1735478230363,0.82737168,195.88,195.85,2.92]
[1735478230563,2.92,195.94,195.85,2.92]
[1735478230765,0.82747059,195.93,195.85,2.92]
[1735478231865,2.92,195.94,195.85,2.92]
[1735478232066,0.82751023,195.93,195.85,2.92]
[1735478234566,0.82692334,195.92,195.85,2.92]
[1735478234866,0.82692334,195.91,195.85,2.92]
[1735478235067,0.82692334,195.9,195.85,2.92]
[1735478235271,0.82692334,195.89,195.85,2.92]
[1735478235471,0.82692334,195.88,195.85,2.92]
[1735478235670,2.92,195.94,195.85,2.92]
[1735478235870,0.82697286,195.93,195.85,2.92]
[1735478237071,0.82692246,195.92,195.85,2.92]
[1735478237271,0.82692246,195.91,195.85,2.92]
[1735478237474,0.82692246,195.9,195.78,2.5578]
[1735478237673,0.82692246,195.89,195.79,2.92]
[1735478237867,0.82692246,195.88,195.79,2.92]
[1735478238068,2.92,195.94,195.79,2.92]
[1735478238270,0.82681921,195.93,195.79,2.92]
[1735478239874,0.82681921,195.93,195.77,1.5018]
[1735478240274,0.82681921,195.93,195.78,2.92]
[1735478241470,0.82681921,195.93,195.74,1.5914]
[1735478241772,0.82681921,195.93,195.75,2.92]
[1735478242279,0.82669323,195.92,195.75,2.92]
[1735478242471,0.82669323,195.91,195.76,2.92]
[1735478242671,0.82669323,195.9,195.76,2.92]
[1735478243067,1.5704,195.91,195.76,2.92]
[1735478243267,0.82679051,195.9,195.76,2.92]
[1735478243670,0.82679051,195.9,195.77,2.5579]
[1735478243873,0.82679051,195.9,195.77,4.0197]
[1735478245880,0.82679051,195.9,195.77,1.4618]
[1735478248580,0.82679051,195.9,195.77,4.0197]
[1735478249277,0.82679051,195.9,195.77,1.4618]
[1735478249481,0.82679051,195.9,195.78,2.5577]
[1735478249875,7.01267822,195.91,195.78,2.5577]
[1735478250078,0.82687331,195.9,195.78,2.5577]
[1735478251587,0.82687331,195.89,195.78,2.5577]
[1735478251794,0.82687331,195.88,195.78,2.5577]
[1735478251988,0.82687331,195.87,195.78,2.5577]
[1735478252188,19.11998768,195.92,195.78,2.5577]
[1735478252388,0.8268746,195.91,195.78,2.5577]
[1735478252590,0.82687464,195.9,195.78,2.5577]
[1735478252790,0.82687464,195.89,195.78,2.5577]
[1735478253094,0.82687464,195.88,195.78,2.5577]
[1735478253291,0.82687464,195.87,195.78,2.5577]
[1735478253490,19.11998768,195.92,195.78,2.5577]
[1735478253690,0.82687519,195.91,195.78,2.5577]
[1735478254491,0.82687519,195.91,195.79,2.92]
[1735478254694,2.38737519,195.91,195.79,2.92]
[1735478254887,0.82687519,195.9,195.79,2.92]
[1735478256790,3.74687519,195.9,195.79,2.92]